Cogmind - Beta 13 @@@ ROGUE MODE // 2024.04.08 @ 22:55:29 Player: GregoriusTechneticies Result: Destroyed by S-10 Pest with Light Assault Rifle Performance ------------- Evolutions (1) 500 Regions Visited (3) 600 Robots Destroyed (25) 125 Value Destroyed (239) 239 Prototype IDs (0) 0 Alien Tech Used (0) 0 Bonus (0) 0 TOTAL SCORE: 1464 Bonus ------- None Cogmind --------- Core Integrity 0/400 Matter 264/300 Energy 250/250 System Corruption 18% Temperature Cool (0) Movement Rolling (140) Ox4 Location -9/Materials Parts ------- > --- POWER (1) -------- Ion Engine > --- PROPULSION (2) --- Wheel > --- UTILITY (4) ------ High-capacity Storage Unit Signal Interpreter Terrain Scan Processor > --- WEAPON (2) ------- Mining Claw > --- INVENTORY (20) --- Light Ion Engine Light Ion Engine VTOL Module Large Matter Pod (137) High-capacity Matter Pod (200) Structural Scanner Improved Terrain Scanner Seismic Detector Seismic Detector Seismic Detector Targeting Computer Grenade Launcher Mining Laser Mining Laser Peak State ------------ > --- POWER ------------ Ion Engine > --- PROPULSION ------- Wheel Wheel > --- UTILITY ---------- High-capacity Storage Unit Signal Interpreter Improved Terrain Scanner Terrain Scan Processor > --- WEAPON ----------- Assault Rifle Mining Claw > --- INVENTORY -------- Light Ion Engine Light Ion Engine Improved Treads VTOL Module Small Matter Pod Medium Matter Pod Large Matter Pod High-capacity Matter Pod Structural Scanner Improved Terrain Scanner Seismic Detector Seismic Detector Targeting Computer Light Assault Rifle Grenade Launcher Mining Laser Mining Laser [Rating: 14] Favorites ----------- Power Ion Engine Engine Ion Engine Propulsion Wheel Wheel Wheel Flight Unit Flight Unit Utility High-capacity Storage Unit Device Improved Terrain Scanner Storage High-capacity Storage Unit Processor Signal Interpreter Weapon Assault Rifle Ballistic Gun Assault Rifle Slashing Weapon Mining Claw Build | -11 -10 -10 -9 ------- Run | Yrd Mat Min Mat Slots Evolved 2 | . . . 2 Power . | . . . . Propulsion . | . . . . Utility 2 | . . . 2 Weapon . | . . . . Parts Attached 35 | 12 6 . 17 Power 3 | 1 . . 2 Engine 3 | 1 . . 2 Core . | . . . . Reactor . | . . . . Propulsion 12 | 6 . . 6 Treads . | . . . . Leg . | . . . . Wheel 11 | 6 . . 5 Hover . | . . . . Flight 1 | . . . 1 Utility 12 | 3 4 . 5 Device 8 | 2 3 . 3 Storage 2 | 1 1 . . Processor 2 | . . . 2 Hackware . | . . . . Protection . | . . . . Artifact . | . . . . Weapon 8 | 2 2 . 4 Energy Gun . | . . . . Energy Cannon . | . . . . Ballistic Gun 5 | 2 1 . 2 Ballistic Cannon . | . . . . Launcher . | . . . . Special Weapon . | . . . . Impact Weapon . | . . . . Slashing Weapon 3 | . 1 . 2 Piercing Weapon . | . . . . Special Melee Weapon . | . . . . Unidentified Prototypes . | . . . . Parts Lost 10 | . . . 10 Power 1 | . . . 1 Propulsion 5 | . . . 5 Utility 2 | . . . 2 Weapon 2 | . . . 2 Highest Loss Streak 5 | . . . 5 To Critical Strikes . | . . . . Average Slot Usage (%) 93 | . 97 100 90 Engine 11 | . 14 14 10 Wheel 21 | . 28 28 17 Device 13 | . 14 14 12 Storage 12 | . 14 14 11 Processor 10 | . . . 18 Ballistic Gun 15 | . 23 14 10 Slashing Weapon 6 | . 2 14 9 Naked Turns . | . . . . Heaviest Build 51 | 14 50 50 51 Greatest Support 32 | 32 20 20 20 Greatest Overweight (x) 16 | . 2 2 16 Average Overweight (x) 1 | . 1 2 2 Largest Inventory Capacity 20 | 8 20 20 20 Average Capacity 17 | 7 19 20 20 Most Carried 20 | 8 13 18 20 Average Carried 12 | 4 10 16 15 Final Capacity 20 | 8 20 20 20 Final Carried 18 | 8 12 18 14 Class Distribution -------------------- 60% | Mutant 39% | Scavenger-Mutant Dominant Class ---------------- Mutant | -10/Materials Mutant | -10/Mines Scavenger-Mutant | -9/Materials Resources | -11 -10 -10 -9 ----------- Run | Yrd Mat Min Mat Matter Collected 1557 | 524 12 450 571 Remotely . | . . . . Salvage Created 655 | 317 105 . 233 Parts 53 | 28 8 . 17 Haulers Intercepted . | . . . . Recyclers Shooed 3 | . 2 . 1 Parts Field Recycled . | . . . . Retrieved Matter . | . . . . Parts Self-Destructed . | . . . . Prevented . | . . . . Kills | -11 -10 -10 -9 ------- Run | Yrd Mat Min Mat Combat Hostiles Destroyed 4 | . . . 4 Melee 2 | . . . 2 Guns 2 | . . . 2 Classes Destroyed 7 | 3 1 . 3 Worker 8 | 4 1 . 3 Builder 1 | . . . 1 Tunneler 9 | 9 . . . Recycler 2 | 1 1 . . Watcher 1 | . 1 . . Swarmer 1 | . . . 1 Grunt 3 | . . . 3 Best Kill Streak 4 | 4 1 . 2 Combat Bots Only 1 | . . . 1 Max Kills in Single Turn 1 | 1 1 . 1 Gunslinging . | . . . . Exploded . | . . . . Melee 1 | . . . 1 Uniques/NPCs Destroyed . | . . . . Combat | -11 -10 -10 -9 -------- Run | Yrd Mat Min Mat Hostile Shots Fired 128 | . . . 128 Missed 32 | . . . 32 Damage Taken 1340 | . . . 1340 Core 405 | . . . 405 Absorbed by Shields . | . . . . Core Remaining (%) 100 | 100 . 100 . Volleys Fired 116 | 56 14 . 46 Largest 2 | 2 2 . 2 Hottest 40 | 40 40 . 40 Shots Fired 199 | 112 28 . 59 Gun 199 | 112 28 . 59 Cannon . | . . . . Launcher . | . . . . Special . | . . . . Kinetic 199 | 112 28 . 59 Thermal . | . . . . Explosive . | . . . . Electromagnetic . | . . . . Robot Hit Streak 14 | 8 7 . 14 Robot Miss Streak 11 | 5 8 . 11 Penetration Max . | . . . . Secondary Targets 1 | . . . 1 Max Gunslinging Chain 1 | . . . 1 Shots Hit Robots 111 | 59 12 . 40 Core Hits 37 | 18 5 . 14 Critical Kills 1 | 1 . . . Critical Parts Destroyed . | . . . . Critical Strikes 1 | 1 . . . Destroy 1 | 1 . . . Melee Attacks 47 | . 1 . 46 Impact . | . . . . Slashing 47 | . 1 . 46 Piercing . | . . . . Sneak Attacks 1 | . . . 1 Combat Hostiles . | . . . . Follow-up Attacks . | . . . . Damage Inflicted 1311 | 645 118 . 548 Guns 1149 | 645 118 . 386 Cannons . | . . . . Explosions . | . . . . Melee 162 | . . . 162 Ramming . | . . . . Kinetic 1149 | 645 118 . 386 Thermal . | . . . . Explosive . | . . . . Electromagnetic . | . . . . Impact . | . . . . Slashing 162 | . . . 162 Piercing . | . . . . Highest Corruption 18 | . . . 18 Average Corruption 12 | . . . 12 Corruption Purged . | . . . . Corruption Blocked . | . . . . Effects 24 | . . . 24 Message Errors 3 | . . . 3 Matter Fused 7 | . . . 7 Heat Flow Errors 3 | . . . 3 Energy Discharges 2 | . . . 2 Data Loss (minor) 2 | . . . 2 Data Loss (major) 1 | . . . 1 Misfires 4 | . . . 4 Weapon Failures 2 | . . . 2 Overload Shots . | . . . . Overflow Damage . | . . . . Projectiles . | . . . . Explosions . | . . . . Melee . | . . . . Knockbacks . | . . . . Impact . | . . . . Kinetic . | . . . . Secondary . | . . . . Self-Inflicted Damage . | . . . . Shots . | . . . . Rammed . | . . . . Targets Rammed . | . . . . Kicked . | . . . . Crushed . | . . . . Highest Temperature 249 | . . . 249 Average Temperature 81 | . . . 81 Received Heat Transfer 417 | . . . 417 Siege Activations . | . . . . Robots Corrupted . | . . . . Combat Hostiles . | . . . . Parts Fried . | . . . . Impact Corruptions . | . . . . Robots Melted . | . . . . Combat Hostiles . | . . . . Parts Melted . | . . . . Heat Transferred . | . . . . Parts Sabotaged . | . . . . Parts Stolen . | . . . . Parts Stripped . | . . . . Power Chain Reactions . | . . . . Alert | -11 -10 -10 -9 ------- Run | Yrd Mat Min Mat Peak Influence 117 | 70 92 . 117 Initial 45 | . 45 . . Average 34 | 35 57 . 22 Maximum Alert Level . | . . . . Low Security (%) 100 | 100 100 100 100 Level 1 . | . . . . Level 2 . | . . . . Level 3 . | . . . . Level 4 . | . . . . Level 5 . | . . . . High Security . | . . . . Max Security . | . . . . Squads Dispatched 1 | . . . 1 Investigation . | . . . . Extermination . | . . . . Reinforcement 1 | . . . 1 Assault . | . . . . Garrison . | . . . . Intercept . | . . . . Searches Triggered . | . . . . Construction Impeded . | . . . . Haulers Reinforced . | . . . . Active Scanning Responses . | . . . . Cargo Convoy Interrupts . | . . . . Stealth | -11 -10 -10 -9 --------- Run | Yrd Mat Min Mat Distress Signals 3 | . . . 3 Communications Jammed . | . . . . Distress Signals . | . . . . Times Spotted 22 | . 2 . 20 Peak Tracking Total 7 | . 2 . 7 Tactical Retreats 2 | . . . 2 Traps | -11 -10 -10 -9 ------- Run | Yrd Mat Min Mat Traps Triggered 1 | . . . 1 Indirectly . | . . . . Trap Hack Attempts . | . . . . Triggered . | . . . . Disarmed . | . . . . Reprogrammed . | . . . . Reused . | . . . . Traps Extracted . | . . . . Installed . | . . . . Triggered . | . . . . Machines | -11 -10 -10 -9 ---------- Run | Yrd Mat Min Mat Machines Disabled 1 | . . . 1 Max in Single Turn 1 | . . . 1 Machines Repaired . | . . . . Machines Dismantled . | . . . . Machines Sabotaged . | . . . . Overloaded Fab Kills . | . . . . Hacking | -11 -10 -10 -9 --------- Run | Yrd Mat Min Mat Machines Accessed 3 | . 2 . 1 Terminals 2 | . 2 . . Fabricators . | . . . . Repair Stations . | . . . . Recycling Units . | . . . . Scanalyzers 1 | . . . 1 Garrison Access . | . . . . Total Hacks 7 | . 5 . 2 Successful 2 | . 1 . 1 Failed 5 | . 4 . 1 Catastrophic . | . . . . Database Lockouts . | . . . . Manual 7 | . 5 . 2 Terminals 5 | . 5 . . Fabricators . | . . . . Repair Stations . | . . . . Recycling Units . | . . . . Scanalyzers 2 | . . . 2 Garrison Access . | . . . . Terminal Hacks . | . . . . Fabricator Hacks . | . . . . Repair Station Hacks . | . . . . Recycling Unit Hacks . | . . . . Scanalyzer . | . . . . Garrison Access Hacks . | . . . . Unauthorized Hacks 2 | . 1 . 1 Terminals 1 | . 1 . . Botnet 1 | . 1 . . Fabricators . | . . . . Repair Stations . | . . . . Recycling Units . | . . . . Scanalyzers 1 | . . . 1 Researchers 1 | . . . 1 Garrison Access . | . . . . Data Cores Recovered . | . . . . Used . | . . . . Hacking Detections 3 | . 2 . 1 Full Trace Events 1 | . . . 1 Feedback Events 1 | . . . 1 Corruption 1 | . . . 1 Feedback Blocked . | . . . . Robot Schematics Acquired . | . . . . Robots Built . | . . . . Authchips . | . . . . Time . | . . . . Total Robot Build Rating . | . . . . Part Schematics Acquired . | . . . . Parts Built . | . . . . Authchips . | . . . . Time . | . . . . Total Part Build Rating . | . . . . Parts Repaired . | . . . . Time . | . . . . Parts Recycled . | . . . . Recycled Matter . | . . . . Retrieved Matter . | . . . . Retrieved Components . | . . . . Parts Scanalyzed . | . . . . Part Schematics Acquired . | . . . . Parts Damaged . | . . . . Bothacking | -11 -10 -10 -9 ------------ Run | Yrd Mat Min Mat Used RIF Installer . | . . . . Robots Hacked . | . . . . Non-combat . | . . . . Combat . | . . . . Robot Hacks Applied . | . . . . Relay Couplers Released . | . . . . Fabnet Peak Effective % . | . . . . Robots Rewired . | . . . . Allies Hacked . | . . . . Hacks Repelled . | . . . . Allies | -11 -10 -10 -9 -------- Run | Yrd Mat Min Mat Total Allies . | . . . . Largest Group . | . . . . Highest-Rated Group . | . . . . Highest-Rated Ally . | . . . . Total Orders . | . . . . Ally Attacks . | . . . . Total Damage . | . . . . Kills . | . . . . Allies Corrupted . | . . . . Allies Melted . | . . . . Intel | -11 -10 -10 -9 ------- Run | Yrd Mat Min Mat Robot Analysis Total . | . . . . Derelict Logs Recovered . | . . . . Drone Launches . | . . . . Drone Recoveries . | . . . . Exploration | -11 -10 -10 -9 ------------- Run | Yrd Mat Min Mat Turns Passed 1742 | 382 483 79 798 Spaces Moved 792 | 229 222 67 274 Core 12 | 7 . . 5 Treads . | . . . . Legs . | . . . . Wheels 780 | 222 222 67 269 Hover . | . . . . Flight . | . . . . Fastest Speed 50 | 50 80 110 110 Average Speed 107 | 82 105 110 128 Slowest Speed 850 | 100 110 110 850 Overloaded Moves . | . . . . Propulsion Burnouts . | . . . . Robots Hopped . | . . . . Cave-ins Triggered 2 | . . . 2 Exploration Rate (%) 21 | 8 32 24 21 Regions Visited 3 Branch Regions 1 Pre-discovered Areas . | . . . . Known Exits Taken . | . . . . Unknown Exits Taken 3 | 1 1 1 . Scrap Searched 1 | . . 1 . Spaces Dug 23 | . 1 . 22 Terrain Destroyed 23 | . 1 . 22 Melee 23 | . 1 . 22 Projectile . | . . . . AOE . | . . . . Terrain Rammed . | . . . . Walls Destroyed . | . . . . Machines Disabled . | . . . . Actions | -11 -10 -10 -9 --------- Run | Yrd Mat Min Mat Total 1415 | 323 442 72 578 Wait 354 | . 194 . 160 Move 789 | 228 221 66 274 Hop . | . . . . Pick Up 49 | 20 4 6 19 Fast Attach 1 | . . . 1 Attach 17 | 7 1 . 9 Detach 2 | . 1 . 1 Swap 17 | 5 5 . 7 Drop 23 | 7 1 . 15 Fire 116 | 56 14 . 46 Melee 47 | . 1 . 46 Ram . | . . . . Kick . | . . . . Crush . | . . . . Escape Stasis . | . . . . Rewire . | . . . . Trap . | . . . . Miscellaneous . | . . . . Route ------- -11/Scrapyard -10/Materials -10/Mines -9/Materials History --------- Turn | Location | Event 6 | -11/Scrapyard | Discovered new exit (range 15) 383 | -11/Scrapyard | Entered Materials 432 | -10/Materials | Build established: Mutant 780 | -10/Materials | Discovered new exit (range 16) 866 | -10/Materials | Entered Mines 899 | -10/Mines | Discovered new exit (range 14) 945 | -10/Mines | Entered Materials 945 | -9/Materials | Evolved 2 slots: Utility x2 1041 | -9/Materials | Crushed by falling debris 1041 | -9/Materials | System corruption reached 10% 1072 | -9/Materials | Lost 3 parts (2n1u) 1347 | -9/Materials | Build established: Scavenger-Mutant 1540 | -9/Materials | Crushed by falling debris 1638 | -9/Materials | Core integrity fell below 50% 1659 | -9/Materials | Lost 5 parts (1p1n1u2w) 1685 | -9/Materials | Core integrity fell below 20% 1743 | -9/Materials | Destroyed by S-10 Pest with Light Assault Rifle Last Messages --------------- 01687_ G-34 Mercenary destroyed. 01688_ K-01 Serf collects debris. 01693_ Acquired Ion Engine. 01697_ K-01 Serf collects debris. 01703_ System corrupted: Matter fused (-9). 01705_ K-01 Serf collects debris. 01710_ R-06 Scavenger collects Aluminum Leg. 01719_ K-01 Serf cleans the Processing Tank. 01729_ W-16 Scout sends out distress signal. 01731_ S-10 Pest destroyed. 01732_ R-06 Scavenger inserts Corrupted Lgt. Assault Rifle into recycling unit. 01735_ R-06 Scavenger inserts Imp. Treads into recycling unit. 01738_ R-06 Scavenger collects Lgt. Ion Engine. 01741_ Triggered Shock Trap. 01741_ The floor emits a surge of raw power. 01741_ System corrupted (+2). 01742_ U-05 Engineer lays Concrete. Map ----- +----------------------------------------------------+ | T ??????????? | | ??????????? | | #########+############# ### ####?????????????? | | ? ???? ? ???####?##### ##????????????????????? | | ???### " ? ??#####?#?## #?????????????????????? | | ?????# ???? "?####??#??# ##????????????????????? | | ? ??## ?"? ????###??#??# #?????????????????????? | | ?? ###???? T#####T##### ##????????????????????? | | ?? #?? "? ??# #????????????????????? | | ?????????????# #????????????????????? | | ???????"?? ?"# """ """ +????????????????????? | | ????#??????? #? """ """g # ???????????????????? | | ????????? ??????""" """ # ???????????????????? | | ??????????????? """ """g[ #????????????????????? | | ?????????????# """ """ #????????????????????? | | ?????????????# =^[ #????????????????????? | | ?????????????# % = #????????????????????? | | ?????????????# """ """ #????????????????????? | | ??????????????? """ """ss ##???????????????????? | | ????????????????""" """ r #???????????????????? | | ??????????????? """ """ #???????????????????? | | ?????????????+ """ """ #???????????????????? | | ?????????????# #???????????????????? | | ?????????????# #???????????????????? | | ?????????????## ###" "# u #???????????????????? | | ??????????????# ???#"Y"#@ #???????????????????? | | ????????????????????#"""# #???????????????????? | | ????????????????????##### #???????????????????? | | ????????????????????????# #???????????????????? | | ????????????????????????# #???????????????????? | | ????????????????????????# #???????????????????? | | ????????????????????????# #???????????????????? | | ????????????????????????# #???????????????????? | | ????????????????????????# #???????????????????? | | ????????????????????????? ???????????????????? | | ????????????????????????? ???????????????????? | | ????????????????????????? ??????????????????? | | ????????????????????????? ##+??????????????????? | | ????????????????????????? #????????????????????? | | ????????????????????????? #????????????????????? | | ????????????????????????? ?????????????????????? | | ?????????????????????????????????????????????????? | | ?????????????????????????????????????????????????? | | ?????????????????????????????????????????????????? | | ?????????????????????????????????????????????????? | | ?????????????????????????????????????????????????? | | ?????????????????????????????????????????????????? | | ?????????????????????????????????????????????????? | | ?????????????????????????????????????????????????? | | ?????????????????????????????????????????????????? | +----------------------------------------------------+ Best States ------------- Heat Dissipation 28 Energy Generation 10 Energy Capacity 250 Matter Stores 300 Matter Capacity 300 Sight Range 16 Terrain Scan Range 16 Terrain Scan Density 85 Evasion (%) 44 Item Schematics ----------------- None Robot Schematics ------------------ None Fabricated ------------ Nothing Alien Tech Used ----------------- None Achievements -------------- Part-time Excavator Challenges ------------ None Game ------ Seed PrecisionGravityBarrier Manual? 0 Play Time 00:26:42 Cumulative 17.0 hours Start 2024.04.08 @ 22:29:50 End 2024.04.08 @ 22:55:29 Sessions 1 Manual Loads 0 Difficulty Rogue Special Mode None Game No. 17 Rogue 2 Adventurer 0 Explorer 15 Win Type - Total 0 Types 0/0/0/0/0/0/0/0/0 Lore% 4 Gallery% 23 Achievement% 18 Wizard Run 0 Options --------- Layout 1 ASCII 0 Keyboard 0 Movement Mouse Keybinds 0 Fullscreen 1 Font 24/Smallcaps Map View 50x35 Zoom Use 0% Tactical HUD 1 Map Filters NONE Filters NONE Steam 1 RUN: 060d233a-cf0f-4a88-aace-e217d378661c